Workbook

Sheet Ward Bed Unavailable
A1: Month | B1: Ward Bed Unavailable | C1: UCL | D1: +2 Sigma | E1: +1 Sigma | F1: Average | G1: -1 Sigma | H1: -2 Sigma | I1: LCL | J1: LastCell | K1: Range | L1: UCL | M1: +2 Sigma | N1: +1 Sigma | O1: Average | P1: -1 Sigma | Q1: -2 Sigma | R1: LCL
A2: Apr-11 | B2: 33. | C2: =F2+2.66*O2 -> 48. | D2: =F2+(2/3)*2.66*O2 -> 40. | E2: =F2+(1/3)*2.66*O2 -> 32. | F2: =AVERAGE($B$2:$B$10) -> 24. | G2: =F2-(1/3)*2.66*O2 -> 16. | H2: =F2-(2/3)*2.66*O2 -> 8. | I2: =F2-2.66*O2 -> -0. | J2: =B2 -> 33 | O2: =AVERAGE($K$2:$K$10) -> 9.
A3: May-11 | B3: 18. | C3: 48. | D3: 40. | E3: 32. | F3: 24. | G3: 16. | H3: 8. | I3: -0. | J3: =IF(ISBLANK(B3),OFFSET(J3,-1,0,1,1),B3) -> 18 | K3: =IF(OR(OFFSET(K3,-1,-9,1,1)="",OFFSET(K3,0,-9,1,1)=""),"",IF(ISERROR(ABS(B3-OFFSET(K3,-1,-1,1,1))),"",ABS(B3-OFFSET(K3,-1,-1,1,1)))) -> 15. | L3: =3.267*O3 -> 30. | M3: =(2/3)*(L3-O3)+O3 -> 23. | N3: =(1/3)*(L3-O3)+O3 -> 16. | O3: 9. | P3: =(MAX(O3-(1/3)*(L3-O3),0)) -> 2. | Q3: =MAX(O3-(2/3)*(L3-O3),0) -> 0. | R3: 0.
A4: Jun-11 | B4: 16. | C4: 48. | D4: 40. | E4: 32. | F4: 24. | G4: 16. | H4: 8. | I4: -0. | J4: 16 | K4: 2. | L4: 30. | M4: 23. | N4: 16. | O4: 9. | P4: 2. | Q4: 0. | R4: 0.
A5: Jul-11 | B5: 7. | C5: 48. | D5: 40. | E5: 32. | F5: 24. | G5: 16. | H5: 8. | I5: -0. | J5: 7 | K5: 9. | L5: 30. | M5: 23. | N5: 16. | O5: 9. | P5: 2. | Q5: 0. | R5: 0.
A6: Aug-11 | B6: 2. | C6: 48. | D6: 40. | E6: 32. | F6: 24. | G6: 16. | H6: 8. | I6: -0. | J6: 2 | K6: 5. | L6: 30. | M6: 23. | N6: 16. | O6: 9. | P6: 2. | Q6: 0. | R6: 0.
A7: Sep-11 | B7: 27. | C7: 48. | D7: 40. | E7: 32. | F7: 24. | G7: 16. | H7: 8. | I7: -0. | J7: 27 | K7: 25. | L7: 30. | M7: 23. | N7: 16. | O7: 9. | P7: 2. | Q7: 0. | R7: 0.
A8: Oct-11 | B8: 35. | C8: 48. | D8: 40. | E8: 32. | F8: 24. | G8: 16. | H8: 8. | I8: -0. | J8: 35 | K8: 8. | L8: 30. | M8: 23. | N8: 16. | O8: 9. | P8: 2. | Q8: 0. | R8: 0.
A9: Nov-11 | B9: 35. | C9: 48. | D9: 40. | E9: 32. | F9: 24. | G9: 16. | H9: 8. | I9: -0. | J9: 35 | K9: 0. | L9: 30. | M9: 23. | N9: 16. | O9: 9. | P9: 2. | Q9: 0. | R9: 0.
A10: Dec-11 | B10: 44. | C10: 48. | D10: 40. | E10: 32. | F10: 24. | G10: 16. | H10: 8. | I10: -0. | J10: 44 | K10: 9. | L10: 30. | M10: 23. | N10: 16. | O10: 9. | P10: 2. | Q10: 0. | R10: 0.
A11: Jan-12 | B11: 123. | C11: 100. | D11: 91. | E11: 82. | F11: =AVERAGE($B$11:$B$14) -> 73. | G11: 63. | H11: 54. | I11: 45. | J11: 123 | K11: 79. | L11: 33. | M11: 26. | N11: 18. | O11: =AVERAGE($K$13:$K$24) -> 10. | P11: 2. | Q11: 0. | R11: 0.
A12: Feb-12 | B12: 65. | C12: 100. | D12: 91. | E12: 82. | F12: 73. | G12: 63. | H12: 54. | I12: 45. | J12: 65 | K12: 58. | L12: 33. | M12: 26. | N12: 18. | O12: 10. | P12: 2. | Q12: 0. | R12: 0.
A13: Mar-12 | B13: 54. | C13: 95. | D13: 88. | E13: 80. | F13: 73. | G13: 65. | H13: 57. | I13: 50. | J13: 54 | K13: 11. | L13: 28. | M13: 21. | N13: 15. | O13: =AVERAGE($K$13:$K$14) -> 9. | P13: 2. | Q13: 0. | R13: 0.
A14: Apr-12 | B14: 48. | C14: 95. | D14: 88. | E14: 80. | F14: 73. | G14: 65. | H14: 57. | I14: 50. | J14: 48 | K14: 6. | L14: 28. | M14: 21. | N14: 15. | O14: 9. | P14: 2. | Q14: 0. | R14: 0.
A15: May-12 | B15: 9. | C15: 37. | D15: 28. | E15: 19. | F15: =AVERAGE($B$15:$B$24) -> 9. | G15: 0. | H15: -9. | I15: 0. | J15: 9 | K15: 39. | L15: 34. | M15: 26. | N15: 18. | O15: =AVERAGE($K$15:$K$24) -> 11. | P15: 3. | Q15: 0. | R15: 0.
A16: Jun-12 | B16: 6. | C16: 37. | D16: 28. | E16: 19. | F16: 9. | G16: 0. | H16: -9. | I16: 0. | J16: 6 | K16: 3. | L16: 34. | M16: 26. | N16: 18. | O16: 11. | P16: 3. | Q16: 0. | R16: 0.
A17: Jul-12 | B17: 15. | C17: 37. | D17: 28. | E17: 19. | F17: 9. | G17: 0. | H17: -9. | I17: 0. | J17: 15 | K17: 9. | L17: 34. | M17: 26. | N17: 18. | O17: 11. | P17: 3. | Q17: 0. | R17: 0.
A18: Aug-12 | B18: 1. | C18: 37. | D18: 28. | E18: 19. | F18: 9. | G18: 0. | H18: -9. | I18: 0. | J18: 1 | K18: 14. | L18: 34. | M18: 26. | N18: 18. | O18: 11. | P18: 3. | Q18: 0. | R18: 0.
A19: Sep-12 | B19: 5. | C19: 37. | D19: 28. | E19: 19. | F19: 9. | G19: 0. | H19: -9. | I19: 0. | J19: 5 | K19: 4. | L19: 34. | M19: 26. | N19: 18. | O19: 11. | P19: 3. | Q19: 0. | R19: 0.
A20: Oct-12 | B20: 24. | C20: 37. | D20: 28. | E20: 19. | F20: 9. | G20: 0. | H20: -9. | I20: 0. | J20: 24 | K20: 19. | L20: 34. | M20: 26. | N20: 18. | O20: 11. | P20: 3. | Q20: 0. | R20: 0.
A21: Nov-12 | B21: 11. | C21: 37. | D21: 28. | E21: 19. | F21: 9. | G21: 0. | H21: -9. | I21: 0. | J21: 11 | K21: 13. | L21: 34. | M21: 26. | N21: 18. | O21: 11. | P21: 3. | Q21: 0. | R21: 0.
A22: Dec-12 | B22: 8. | C22: 37. | D22: 28. | E22: 19. | F22: 9. | G22: 0. | H22: -9. | I22: 0. | J22: 8 | K22: 3. | L22: 34. | M22: 26. | N22: 18. | O22: 11. | P22: 3. | Q22: 0. | R22: 0.
A23: Jan-13 | B23: 8. | C23: 37. | D23: 28. | E23: 19. | F23: 9. | G23: 0. | H23: -9. | I23: 0. | J23: 8 | K23: 0. | L23: 34. | M23: 26. | N23: 18. | O23: 11. | P23: 3. | Q23: 0. | R23: 0.
A24: Feb-13 | B24: 7. | C24: 37. | D24: 28. | E24: 19. | F24: 9. | G24: 0. | H24: -9. | I24: 0. | J24: 7 | K24: 1. | L24: 34. | M24: 26. | N24: 18. | O24: 11. | P24: 3. | Q24: 0. | R24: 0.
A25: 2013-03-01 | B25: 10. | C25: =F25+2.66*O25 -> 37. | D25: =F25+(2/3)*2.66*O25 -> 28. | E25: =F25+(1/3)*2.66*O25 -> 19. | F25: 9. | G25: =F25-(1/3)*2.66*O25 -> 0. | H25: =F25-(2/3)*2.66*O25 -> -9. | I25: 1. | J25: =IF(ISBLANK(B25),OFFSET(J25,-1,0,1,1),B25) -> 10 | K25: =IF(OR(OFFSET(K25,-1,-9,1,1)="",OFFSET(K25,0,-9,1,1)=""),"",IF(ISERROR(ABS(B25-OFFSET(K25,-1,-1,1,1))),"",ABS(B25-OFFSET(K25,-1,-1,1,1)))) -> 3. | L25: =3.267*O25 -> 34. | M25: =(2/3)*(L25-O25)+O25 -> 26. | N25: =(1/3)*(L25-O25)+O25 -> 18. | O25: 11. | P25: =(MAX(O25-(1/3)*(L25-O25),0)) -> 3. | Q25: =MAX(O25-(2/3)*(L25-O25),0) -> 0. | R25: 1.

Sheet Canc Ops
A1: Reason | B1: % of Operations cancelled (Total) | C1: % of Operations cancelled (on the day)
A2: Jan-11 | B2: 8.4% | C2: 1.88%
A3: Feb-11 | B3: 6.1% | C3: 1.96%
A4: Mar-11 | B4: 6.2% | C4: 2.18%
A5: Apr-11 | B5: 4.4% | C5: 1.24%
A6: May-11 | B6: 4.6% | C6: 1.19%
A7: Jun-11 | B7: 5.0% | C7: 1.30%
A8: Jul-11 | B8: 6.2% | C8: 1.20%
A9: Aug-11 | B9: 5.3% | C9: 1.34%
A10: Sep-11 | B10: 6.3% | C10: 1.45%
A11: Oct-11 | B11: 5.7% | C11: 1.44%
A12: Nov-11 | B12: 6.1% | C12: 1.73%
A13: Dec-11 | B13: 6.1% | C13: 1.65%
A14: Jan-12 | B14: 9.82% | C14: 2.21%
A15: Feb-12 | B15: 10.90% | C15: 1.56%
A16: Mar-12 | B16: 9.44% | C16: 1.68%
A17: Apr-12 | B17: 6.79% | C17: 1.59%
A18: May-12 | B18: 3.12% | C18: 1.22%
A19: Jun-12 | B19: 2.97% | C19: 1.04%
A20: Jul-12 | B20: 3.43% | C20: 0.87%
A21: Aug-12 | B21: 2.45% | C21: 0.77%
A22: Sep-12 | B22: 2.34% | C22: 0.95%
A23: 2012-10-01 | B23: 2.81% | C23: 1.33%
A24: 2012-11-01 | B24: 2.91% | C24: 1.03%
A25: 2012-12-01 | B25: 2.57% | C25: 0.88%
A26: 2013-01-01 | B26: 2.70% | C26: 0.78%
A27: 2013-02-01 | B27: 3.08% | C27: 0.95%
A28: 2013-03-01 | B28: 2.57% | C28: 0.83%
